Cogmind - Beta 15 @@@ ROGUE MODE // 2025.08.12 @ 17:50:00 Player: TapeIsSticky Result: Destroyed by Enhanced Grunt with Neutron Cannon Performance ------------- Evolutions (3) 1500 Regions Visited (13) 2600 Robots Destroyed (182) 910 Value Destroyed (6691) 6691 Prototype IDs (227) 4540 Alien Tech Used (0) 0 Bonus (6490) 6490 TOTAL SCORE: 22731 Bonus ------- High Alert Combat Kills 1597 Follower Combat Kills 893 Entered Garrisons 400 Met Data Miner 300 Used Data Conduit 3000 Acquired ECA 300 Cogmind --------- Core Integrity 0/700 Matter 281/300 Energy 85/100 System Corruption 5% Temperature Cool (0) Movement Core (1450) Ox28 Location -7/Data Miner Parts ------- > --- POWER (1) -------- (None) > --- PROPULSION (4) --- (None) > --- UTILITY (5) ------ Huge Storage Unit Improved Sensor Array (fused) > --- WEAPON (3) ------- Mini Assault Cannon > --- INVENTORY (25) --- Armored Huge Wheel Improved Cooling System Large Matter Pod (112) Advanced Terrain Scan Processor Transport Network Coupler Encrypted Comm Array Transmission Jammer Tower Shield Hacking Suite Advanced Hacking Suite System Mapper Gatling Laser Improved EM Pulse Cannon Heavy Assault Rifle Gauss Rifle Proton Missile Launcher Dirty Bomb Trap Dirty Bomb Trap Dirty Bomb Trap Gamma Bomb Trap Peak State ------------ > --- POWER ------------ Reinforced Deuterium Engine > --- PROPULSION ------- Armored Huge Wheel Armored Huge Wheel > --- UTILITY ---------- Improved Cooling System Huge Storage Unit Improved Sensor Array Transmission Jammer Improved Light Armor Plating > --- WEAPON ----------- Gatling Laser Gauss Rifle Mini Assault Cannon > --- INVENTORY -------- Light Nuclear Core Antimatter Reactor Light Treads Light Treads Light Treads Light Treads Armored Huge Wheel Improved Cooling System Large Matter Pod Advanced Terrain Scan Processor Transport Network Coupler Encrypted Comm Array Transmission Jammer Hardened Heavy Armor Plating Tower Shield Advanced Hacking Suite Improved EM Pulse Cannon Heavy Assault Rifle Proton Missile Launcher Improved Grenade Launcher Makeshift Hammer Gamma Bomb Trap [Rating: 57] Favorites ----------- Power Ion Engine Engine Ion Engine Power Core Light Nuclear Core Propulsion Light Treads Treads Light Treads Wheel Armored Huge Wheel Utility Huge Storage Unit Device Seismic Detector Storage Huge Storage Unit Processor Improved Signal Interpreter Protection Hardened Medium Armor Plating Weapon Heavy Assault Rifle Energy Gun Subdweller Laser Energy Cannon Improved EM Pulse Cannon Ballistic Gun Heavy Assault Rifle Ballistic Cannon Mini Assault Cannon Launcher Proton Missile Launcher Impact Weapon Makeshift Hammer Build | -11 -10 -10 -10 -8 -8 -8 -8 -7 -7 -7 -7 -7 -7 ------- Run | Yrd Mat Min Sub Mat Gar Mat Gar Fac Was Fac Low Low Dat Slots Evolved 6 | . . . . 4 . . . 2 . . . . . Power . | . . . . . . . . . . . . . . Propulsion 2 | . . . . 1 . . . 1 . . . . . Utility 3 | . . . . 2 . . . 1 . . . . . Weapon 1 | . . . . 1 . . . . . . . . . Parts Attached 121 | 7 11 3 11 27 19 1 18 11 1 6 2 1 3 Power 14 | 1 1 . 1 4 2 . 3 1 . . . 1 . Engine 7 | 1 1 . 1 3 . . . 1 . . . . . Core 7 | . . . . 1 2 . 3 . . . . 1 . Reactor . | . . . . . . . . . . . . . . Propulsion 33 | 2 . 2 1 8 5 . 9 2 1 . 2 . 1 Treads 29 | 2 . 2 1 7 5 . 9 1 . . 2 . . Leg . | . . . . . . . . . . . . . . Wheel 4 | . . . . 1 . . . 1 1 . . . 1 Hover . | . . . . . . . . . . . . . . Flight . | . . . . . . . . . . . . . . Utility 28 | 2 3 1 2 7 3 . 1 4 . 4 . . 1 Device 10 | 1 . . . 4 1 . . 2 . 2 . . . Storage 6 | 1 3 1 . 1 . . . . . . . . . Processor 2 | . . . . . . . . 1 . 1 . . . Hackware . | . . . . . . . . . . . . . . Protection 10 | . . . 2 2 2 . 1 1 . 1 . . 1 Artifact . | . . . . . . . . . . . . . . Weapon 46 | 2 7 . 7 8 9 1 5 4 . 2 . . 1 Energy Gun 7 | 1 . . 2 1 1 . 1 . . 1 . . . Energy Cannon 1 | . . . . . . . . . . . . . 1 Ballistic Gun 29 | 1 5 . 4 6 5 1 4 3 . . . . . Ballistic Cannon 4 | . . . . . 2 . . 1 . 1 . . . Launcher 4 | . 2 . . 1 1 . . . . . . . . Special Weapon . | . . . . . . . . . . . . . . Impact Weapon 1 | . . . 1 . . . . . . . . . . Slashing Weapon . | . . . . . . . . . . . . . . Piercing Weapon . | . . . . . . . . . . . . . . Special Melee Weapon . | . . . . . . . . . . . . . . Unidentified Prototypes 3 | . . . . 1 1 . . . . 1 . . . Parts Lost 41 | . 1 . 4 6 8 . 9 . 3 . . 1 9 Power 9 | . 1 . 1 2 1 . 2 . . . . 1 1 Propulsion 12 | . . . 2 . 2 . 3 . . . . . 5 Utility 8 | . . . . 1 2 . 2 . 1 . . . 2 Weapon 12 | . . . 1 3 3 . 2 . 2 . . . 1 Highest Loss Streak 9 | . 1 . 2 3 4 . 3 . 3 . . 1 9 To Critical Strikes . | . . . . . . . . . . . . . . Average Backups 19 | 2 11 19 21 22 19 21 17 18 19 19 20 16 17 Power . | . . . . . 1 1 . 1 1 2 1 . . Propulsion 4 | . 1 3 2 4 4 7 6 6 6 6 4 3 2 Utility 5 | . 4 4 6 6 6 6 5 4 5 6 8 8 8 Weapon 8 | . 5 11 11 11 6 6 5 6 7 5 4 4 5 Tool/Special . | . . . . . . . . . . . . . . Unused Backups 25 | . 1 1 1 6 1 1 . 1 1 1 1 . 10 Power 1 | . . . . . . . . . . . 1 . . Propulsion 2 | . . . . . . 1 . 1 . . . . . Utility 12 | . . 1 . . . . . . 1 1 . . 9 Weapon 9 | . 1 . 1 6 1 . . . . . . . . Tool/Special 1 | . . . . . . . . . . . . . 1 Average Slot Usage (%) 96 | . 99 100 99 99 96 100 99 93 76 81 83 91 74 Engine 7 | . 14 14 13 7 . . . . 7 7 7 . . Core 2 | . . . . 1 5 9 8 6 . . . 6 5 Treads 24 | . 28 28 27 25 26 27 26 17 2 . 1 15 22 Wheel 1 | . . . . 1 . . . 5 13 15 14 7 2 Device 15 | . 14 14 7 17 12 9 17 22 23 22 23 23 17 Storage 10 | . 14 14 14 9 9 9 9 7 7 7 7 7 7 Protection 6 | . . . 6 9 14 18 9 7 3 5 7 7 6 Energy Gun 1 | . 2 . 2 2 . . 2 . . 5 1 . . Ballistic Gun 21 | . 25 28 25 24 21 17 20 20 9 8 12 13 . Ballistic Cannon 1 | . . . . . 1 9 2 1 4 6 6 7 2 Peak Build Rating 57 | 7 12 12 21 40 40 33 33 47 52 56 57 49 49 Average Rating 28 | 5 9 12 16 36 34 33 28 40 46 54 54 47 37 On Entrance 29 | . 7 12 12 15 40 33 33 26 47 41 56 48 49 Naked Turns . | . . . . . . . . . . . . . . Heaviest Build 118 | 13 52 92 103 111 116 118 118 117 117 114 116 113 115 Greatest Support 80 | 40 40 40 40 60 60 60 60 80 56 56 56 28 80 Greatest Overweight (x) 28 | . 1 2 2 6 1 1 1 4 4 2 4 4 28 Average Overweight (x) 1 | . . 1 2 1 1 1 1 2 1 1 2 3 2 Largest Inventory Capacity 25 | 8 20 25 25 25 25 25 25 25 25 25 25 25 25 Average Capacity 23 | 6 15 23 25 25 25 25 25 25 25 25 25 25 25 Most Carried 25 | 4 20 20 25 25 25 25 25 25 25 25 25 25 25 Average Carried 21 | 2 11 19 22 23 22 24 23 24 22 22 24 24 24 Final Capacity 25 | 8 20 25 25 25 25 25 25 25 25 25 25 25 25 Final Carried 25 | 4 20 19 22 25 25 25 25 25 23 25 25 25 22 Class Distribution -------------------- 42% | Mutant 22% | Scavenger-Tank 13% | Gunner 10% | Tank 6% | Scavenger-Mutant 3% | Scavenger-Gunner Dominant Class ---------------- Mutant | -10/Materials Mutant | -10/Mines Mutant | -10/Subcaves Gunner | -8/Materials Tank | -8/Garrison Scavenger-Tank | -8/Materials Scavenger-Tank | -8/Garrison Scavenger-Tank | -7/Factory Mutant | -7/Waste Tank | -7/Factory Tank | -7/Lower Caves Scavenger-Tank | -7/Lower Caves Scavenger-Mutant | -7/Data Miner Resources | -11 -10 -10 -10 -8 -8 -8 -8 -7 -7 -7 -7 -7 -7 ----------- Run | Yrd Mat Min Sub Mat Gar Mat Gar Fac Was Fac Low Low Dat Matter Collected 6294 | 288 435 134 427 1561 816 82 1114 512 . 57 202 628 38 Remotely . | . . . . . . . . . . . . . . Salvage Created 7124 | 98 334 168 528 2658 702 170 1250 736 . 54 126 300 . Parts 369 | 8 20 11 20 133 36 11 81 30 . 1 7 10 1 Haulers Intercepted 10 | . 2 . . 6 . 1 . 1 . . . . . Recyclers Shooed 4 | . . . . 4 . . . . . . . . . Parts Field Recycled . | . . . . . . . . . . . . . . Retrieved Matter . | . . . . . . . . . . . . . . Parts Self-Destructed 30 | . . . 10 . . . . . . . 10 10 . Prevented 5 | . . . . . . . . . . . 5 . . Kills | -11 -10 -10 -10 -8 -8 -8 -8 -7 -7 -7 -7 -7 -7 ------- Run | Yrd Mat Min Sub Mat Gar Mat Gar Fac Was Fac Low Low Dat Combat Hostiles Destroyed 144 | . 9 2 11 41 22 1 37 12 . 1 3 5 . Guns 103 | . 4 2 11 35 18 1 19 9 . 1 1 2 . Cannons 12 | . . . . . 1 . 5 3 . . . 3 . AOE 28 | . 5 . . 5 3 . 13 . . . 2 . . Classes Destroyed 19 | 2 4 1 1 5 2 . 2 . . . 1 1 . Worker 3 | . . . . 3 . . . . . . . . . Builder 2 | . . . . 1 . . . 1 . . . . . Tunneler 2 | 2 . . . . . . . . . . . . . Hauler 10 | . 2 . . 6 . 1 . 1 . . . . . Recycler 9 | 1 . 1 . 5 . 1 . 1 . . . . . Minesweeper 1 | . . . . . . . . . . . 1 . . Mechanic 1 | . . . . . . . 1 . . . . . . Operator 1 | . . . . 1 . . . . . . . . . Watcher 8 | . 3 . . 5 . . . . . . . . . Swarmer 38 | . 6 . . 7 6 . 13 . . . 2 4 . Grunt 61 | . 3 . 1 25 10 . 14 8 . . . . . Brawler 4 | . . . . 2 . . 1 1 . . . . . Duelist 6 | . . . . 2 1 . 2 1 . . . . . Sentry 16 | . . 2 1 5 1 1 3 1 . 1 1 . . Specialist 2 | . . . . . 1 . 1 . . . . . . Hunter 3 | . . . . . 3 . . . . . . . . Programmer 5 | . . . . . . . 3 1 . . . 1 . Subdweller 9 | . . . 9 . . . . . . . . . . Samaritan 2 | . . . . . . . . . . . . 2 . Best Kill Streak 13 | 3 3 2 2 7 4 1 13 4 . 1 2 4 1 Combat Bots Only 13 | . 3 2 2 6 4 1 13 4 . 1 2 4 . Max Kills in Single Turn 3 | 1 2 1 1 2 2 1 3 2 . 1 1 2 1 Gunslinging 1 | . . . . 1 1 . . . . . . . . Exploded 3 | . 2 . . 2 2 . 3 . . . 1 . . Melee . | . . . . . . . . . . . . . . Uniques/NPCs Destroyed 1 | . . . . . . . . . . . . . 1 Data Miner (-7/Data Miner) Combat | -11 -10 -10 -10 -8 -8 -8 -8 -7 -7 -7 -7 -7 -7 -------- Run | Yrd Mat Min Sub Mat Gar Mat Gar Fac Was Fac Low Low Dat Hostile Shots Fired 852 | . 34 10 62 147 176 13 184 48 3 36 54 21 64 Missed 264 | . 16 4 17 39 47 3 53 20 . 18 25 7 15 Hits 588 | . 18 6 45 108 129 10 131 28 3 18 29 14 49 Melee 24 | . . . . 5 . . 11 3 3 . 2 . . Projectile 564 | . 18 6 45 103 129 10 120 25 . 18 27 14 49 AOE 1 | . . . 1 . . . . . . . . . . Critical Strikes 30 | . . . 2 8 5 . 10 1 2 . 1 1 . Damage Taken 10816 | . 272 124 1043 1692 1859 161 1878 489 408 137 278 205 2270 Core 1393 | . 35 16 166 141 125 17 184 46 . 39 30 16 578 Absorbed by Shields 13 | . . . . . . . 13 . . . . . . Core Remaining (%) 42 | 100 . . 13 . . . 15 . . . . . . Volleys Fired 426 | 6 40 7 53 120 51 6 69 26 5 4 18 16 5 Largest 3 | 2 2 2 2 3 3 3 3 3 1 3 3 3 1 Hottest 148 | 70 70 46 55 148 87 102 102 96 40 148 91 91 69 Shots Fired 1051 | 12 76 14 104 341 125 15 179 74 5 13 38 50 5 Gun 925 | 12 72 14 103 336 107 11 147 56 1 8 25 33 . Cannon 98 | . . . . . 15 4 21 18 4 5 9 17 5 Launcher 28 | . 4 . 1 5 3 . 11 . . . 4 . . Special . | . . . . . . . . . . . . . . Kinetic 975 | 6 62 14 103 314 122 15 165 74 5 9 34 50 2 Thermal 45 | 6 10 . . 22 . . 3 . . 4 . . . Explosive 17 | . 4 . 1 3 3 . 6 . . . . . . Electromagnetic 14 | . . . . 2 . . 5 . . . 4 . 3 Robot Hit Streak 24 | 4 8 8 23 24 11 4 13 10 . 5 9 8 1 Robot Miss Streak 11 | 3 4 1 2 11 4 10 3 3 . 5 5 5 1 Penetration Max 1 | . . . . . . . 1 1 . . . . . Secondary Targets 7 | . . . 1 3 3 . . . . . . . . Max Gunslinging Chain 1 | . . . 1 1 1 . . . . . . . . Shots Hit Robots 676 | 6 44 12 84 199 88 7 123 47 . 7 20 29 10 Core Hits 330 | 4 17 7 21 111 47 4 69 29 . 3 6 11 1 Critical Kills 5 | . . . . . 2 1 . 2 . . . . . Critical Parts Destroyed 3 | . . . . 1 . . . . . . . . 2 Critical Strikes 12 | 1 . . . 1 2 1 2 2 . . . 1 2 Burn 2 | 1 . . . . . . 1 . . . . . . Destroy 6 | . . . . 1 2 1 . 2 . . . . . Blast 2 | . . . . . . . 1 . . . . 1 . Smash 2 | . . . . . . . . . . . . . 2 Melee Attacks 64 | . . . 4 3 6 . 7 2 9 . . 2 31 Impact 64 | . . . 4 3 6 . 7 2 9 . . 2 31 Slashing . | . . . . . . . . . . . . . . Piercing . | . . . . . . . . . . . . . . Sneak Attacks . | . . . . . . . . . . . . . . Combat Hostiles . | . . . . . . . . . . . . . . Follow-up Attacks . | . . . . . . . . . . . . . . Damage Inflicted 15105 | 74 862 205 1291 4450 2022 135 2915 1274 . 131 500 801 445 Guns 10706 | 74 549 184 1291 3698 1437 108 1734 955 . 74 235 367 . Cannons 1250 | . . . . . 195 27 219 319 . 57 174 231 28 Explosions 2258 | . 291 . . 650 387 . 839 . . . 91 . . Melee 786 | . . . . 59 . . 123 . . . . 203 401 Ramming 105 | . 22 21 . 43 3 . . . . . . . 16 Kinetic 11455 | 48 460 184 1291 3372 1632 135 1925 1274 . 99 409 598 28 Thermal 501 | 26 89 . . 326 . . 28 . . 32 . . . Explosive 1689 | . 291 . . 401 387 . 610 . . . . . . Electromagnetic 569 | . . . . 249 . . 229 . . . 91 . . Impact 786 | . . . . 59 . . 123 . . . . 203 401 Slashing . | . . . . . . . . . . . . . . Piercing . | . . . . . . . . . . . . . . Highest Corruption 5 | . . . . 1 1 1 5 3 5 5 5 5 5 Average Corruption 2 | . . . . 1 1 1 4 1 3 5 5 5 5 Corruption Purged . | . . . . . . . . . . . . . . Corruption Blocked . | . . . . . . . . . . . . . . Effects 165 | . . . . 15 13 2 59 8 5 9 15 30 9 Message Errors 39 | . . . . 2 4 1 15 . 1 1 5 7 3 Matter Fused 35 | . . . . 3 2 . 14 2 1 1 2 6 4 Heat Flow Errors 27 | . . . . 4 3 . 6 2 1 . 5 4 2 Energy Discharges 20 | . . . . 3 1 . 7 1 1 2 1 4 . Parts Rejected 2 | . . . . . . . . 1 1 . . . . Parts Fused 2 | . . . . . . . . 1 . . . 1 . Data Loss (minor) 22 | . . . . 1 2 . 11 1 . 3 1 3 . Data Loss (major) 9 | . . . . 1 . . 5 . . . 1 2 . Misfires 6 | . . . . 1 . 1 1 . . 1 . 2 . Alerts 3 | . . . . . 1 . . . . 1 . 1 . Overload Shots . | . . . . . . . . . . . . . . Overflow Damage 582 | . 46 . . 79 . . 127 13 . . 8 207 102 Projectiles 45 | . . . . . . . . 13 . . . 32 . Explosions 148 | . 44 . . 70 . . 26 . . . 8 . . Melee 389 | . 2 . . 9 . . 101 . . . . 175 102 Knockbacks 11 | . 1 . . 1 4 . 2 1 . . 1 1 . Impact 4 | . 1 . . 1 . . 1 . . . . 1 . Kinetic 7 | . . . . . 4 . 1 1 . . 1 . . Secondary . | . . . . . . . . . . . . . . Self-Inflicted Damage 154 | . . . . 99 23 . 31 . . . 1 . . Shots 6 | . . . . 1 1 . 3 . . . 1 . . Rammed 18 | . 5 5 . 7 1 . . . . . . . . Targets Rammed 19 | . 5 5 . 7 1 . . . . . . . 1 Kicked . | . . . . . . . . . . . . . . Crushed 1 | . . . . . . . . . . . . . 1 Highest Temperature 261 | 45 57 4 . 234 212 . 232 196 173 24 261 228 221 Average Temperature 46 | 21 24 4 . 39 32 . 80 110 96 15 119 99 101 Received Heat Transfer 2415 | . 72 18 165 738 720 36 456 144 . 42 24 . . Siege Activations . | . . . . . . . . . . . . . . Martial Activations . | . . . . . . . . . . . . . . Shielding Activations . | . . . . . . . . . . . . . . Robots Disrupted . | . . . . . . . . . . . . . . Combat Hostiles . | . . . . . . . . . . . . . . Robots Corrupted 3 | . . . . 1 . . 1 . . . . 1 . Combat Hostiles 2 | . . . . 1 . . . . . . . 1 . Parts Fried 4 | . . . . 2 . . . 1 . . . 1 . Impact Corruptions 13 | . 1 . . 1 . . 1 . . . . 6 4 Robots Melted . | . . . . . . . . . . . . . . Combat Hostiles . | . . . . . . . . . . . . . . Parts Melted 4 | 1 . . 2 1 . . . . . . . . . Heat Transferred 1020 | 148 259 . . 390 . . 148 . . 75 . . . Parts Sabotaged . | . . . . . . . . . . . . . . Parts Stolen 1 | . . . . . . . . . . . 1 . . Parts Stripped . | . . . . . . . . . . . . . . Power Chain Reactions . | . . . . . . . . . . . . . . Alert | -11 -10 -10 -10 -8 -8 -8 -8 -7 -7 -7 -7 -7 -7 ------- Run | Yrd Mat Min Sub Mat Gar Mat Gar Fac Was Fac Low Low Dat Maximum Alert Level 5 | . . . . 2 4 3 5 4 1 . . . . Low Security (%) 36 | 100 100 100 . 17 . . . . . 100 . . . Level 1 7 | . . . . 20 7 . . . 100 . . . . Level 2 23 | . . . . 61 31 63 10 . . . . . . Level 3 15 | . . . . . 41 36 21 79 . . . . . Level 4 11 | . . . . . 19 . 39 20 . . . . . Level 5 5 | . . . . . . . 27 . . . . . . High Security . | . . . . . . . . . . . . . . Max Security . | . . . . . . . . . . . . . . Peak Influence 2285 | 10 83 91 . 572 1307 860 2285 1199 397 189 . . . Initial 1199 | . . . . . 371 637 552 1199 397 189 . . . Average 554 | 1 12 9 . 403 807 681 1340 1031 339 118 . . . Influence Increases 5685 | 15 287 138 52 1311 1036 323 1863 391 3 46 75 125 20 Destroy 0b10 Robot/C 3320 | . 180 100 40 820 620 180 940 240 . 20 60 100 20 Destroy 0b10 Robot/NC 215 | 15 25 5 . 105 . 25 15 15 . . 5 5 . Destroy Leader 518 | . 40 10 . 212 40 74 50 52 . 10 10 20 . Allied During Kill 128 | . . 22 12 . 35 24 35 . . . . . . Trap Triggered on 0b10 20 | . . . . . . . . 20 . . . . . Successful Hack 44 | . 12 . . 14 . 4 . . . 14 . . . Disable Machine 180 | . . . . 45 45 15 60 15 . . . . . Anti-Garrison Action 850 | . . . . . 200 . 650 . . . . . . Destroy Structure 170 | . 30 1 . 55 36 1 38 4 3 2 . . . Lose Combat Pursuer 240 | . . . . 60 60 . 75 45 . . . . . Influence Decreases 5685 | 15 287 138 52 739 301 780 428 1540 869 271 120 125 20 Entered New Map 3093 | . . . . . 201 670 298 1086 739 81 18 . . Time Decay 2225 | 15 280 138 52 689 . 90 . 434 100 190 102 115 20 Lost Part 257 | . 7 . . 40 80 . 90 . 30 . . 10 . Lost Ally 110 | . . . . 10 20 20 40 20 . . . . . Squads Dispatched 19 | . 2 . . 9 . 3 . 4 . 1 . . . Investigation 6 | . 1 . . 4 . . . . . 1 . . . Extermination 1 | . . . . . . . . 1 . . . . . Reinforcement 5 | . 1 . . 2 . . . 2 . . . . . Assault 1 | . . . . . . . . 1 . . . . . Garrison 6 | . . . . 3 . 3 . . . . . . . Intercept . | . . . . . . . . . . . . . . Searches Triggered . | . . . . . . . . . . . . . . Construction Impeded . | . . . . . . . . . . . . . . Haulers Reinforced . | . . . . . . . . . . . . . . Active Scanning Responses . | . . . . . . . . . . . . . . Cargo Convoy Interrupts 1 | . . . . . . . . 1 . . . . . Stealth | -11 -10 -10 -10 -8 -8 -8 -8 -7 -7 -7 -7 -7 -7 --------- Run | Yrd Mat Min Sub Mat Gar Mat Gar Fac Was Fac Low Low Dat Distress Signals 10 | . . . . 7 . 1 . 2 . . . . . Communications Jammed . | . . . . . . . . . . . . . . Distress Signals . | . . . . . . . . . . . . . . Times Spotted 237 | . 18 5 15 67 28 8 55 20 6 1 4 5 5 Peak Tracking Total 7 | . 3 2 2 6 5 3 7 5 6 1 2 4 4 Tactical Retreats 11 | . . . . 2 2 . 3 1 1 . . . 2 Traps | -11 -10 -10 -10 -8 -8 -8 -8 -7 -7 -7 -7 -7 -7 ------- Run | Yrd Mat Min Sub Mat Gar Mat Gar Fac Was Fac Low Low Dat Traps Triggered 24 | . 2 . . 1 7 . 12 1 . 1 . . . Indirectly 2 | . . . . 1 . . 1 . . . . . . Trap Hack Attempts . | . . . . . . . . . . . . . . Triggered . | . . . . . . . . . . . . . . Disarmed . | . . . . . . . . . . . . . . Reprogrammed . | . . . . . . . . . . . . . . Reused 2 | . . . . . . . . 2 . . . . . Traps Extracted . | . . . . . . . . . . . . . . Installed 2 | . . . . . . . . 2 . . . . . Triggered 2 | . . . . . . . . 2 . . . . . Most Traps Carried 7 | . . . . . 3 3 7 7 1 1 5 5 5 Machines | -11 -10 -10 -10 -8 -8 -8 -8 -7 -7 -7 -7 -7 -7 ---------- Run | Yrd Mat Min Sub Mat Gar Mat Gar Fac Was Fac Low Low Dat Machines Disabled 18 | . . . 1 3 5 1 7 1 . . . . . Max in Single Turn 1 | . . . 1 1 1 . 1 1 . . . . . Garrison Access 1 | . . . . . . . . . . 1 . . . Garrison Relay 4 | . . . . . 2 . 2 . . . . . . Machines Repaired . | . . . . . . . . . . . . . . Machines Dismantled . | . . . . . . . . . . . . . . Machines Sabotaged . | . . . . . . . . . . . . . . Overloaded Fab Kills . | . . . . . . . . . . . . . . Hacking | -11 -10 -10 -10 -8 -8 -8 -8 -7 -7 -7 -7 -7 -7 --------- Run | Yrd Mat Min Sub Mat Gar Mat Gar Fac Was Fac Low Low Dat Machines Accessed 29 | . 8 1 1 7 1 1 1 2 . 2 . 1 4 Terminals 17 | . 7 . . 6 1 . 1 1 . 1 . . . Fabricators 1 | . . . . . . . . 1 . . . . . Repair Stations . | . . . . . . . . . . . . . . Recycling Units 1 | . 1 . . . . . . . . . . . . Scanalyzers . | . . . . . . . . . . . . . . Garrison Access 3 | . . . . 1 . 1 . . . 1 . . . Total Hacks 87 | . 21 1 1 17 1 2 3 3 . 5 . 1 32 Successful 51 | . 9 1 1 3 . 1 . 1 . 2 . 1 32 Failed 36 | . 12 . . 14 1 1 3 2 . 3 . . . Catastrophic 6 | . 1 . . 3 . . 1 . . 1 . . . Database Lockouts . | . . . . . . . . . . . . . . Manual 31 | . 20 . . 9 1 . . . . 1 . . . Terminals 45 | . 20 . . 16 1 . 3 2 . 3 . . . Fabricators 1 | . . . . . . . . 1 . . . . . Repair Stations . | . . . . . . . . . . . . . . Recycling Units 1 | . 1 . . . . . . . . . . . . Scanalyzers . | . . . . . . . . . . . . . . Garrison Access 5 | . . . . 1 . 2 . . . 2 . . . Terminal Hacks 37 | . 1 1 1 1 . . . . . . . 1 32 Record 11 | . . . . . . . . . . . . . 11 Part Schematic 10 | . . . . . . . . . . . . . 10 Robot Schematic 8 | . . . . . . . . . . . . . 8 Robot Analysis 1 | . 1 . . . . . . . . . . . . Prototype ID Bank 3 | . . . . . . . . . . . . . 3 Open Door 2 | . . 1 . . . . . . . . . 1 . Branch Access Points 1 | . . . . 1 . . . . . . . . . Proto ID Catalog 1 | . . . 1 . . . . . . . . . . Fabricator Hacks 1 | . . . . . . . . 1 . . . . . Network Status 1 | . . . . . . . . 1 . . . . . Repair Station Hacks . | . . . . . . . . . . . . . . Recycling Unit Hacks 1 | . 1 . . . . . . . . . . . . Report Inventory 1 | . 1 . . . . . . . . . . . . Scanalyzer . | . . . . . . . . . . . . . . Garrison Access Hacks 3 | . . . . 1 . 1 . . . 1 . . . Unlock Access 2 | . . . . 1 . 1 . . . . . . . Seal Access 1 | . . . . . . . . . . 1 . . . Unauthorized Hacks 9 | . 7 . . 1 . . . . . 1 . . . Terminals 9 | . 7 . . 1 . . . . . 1 . . . Assimilate 1 | . . . . 1 . . . . . . . . . Botnet 2 | . 1 . . . . . . . . 1 . . . Skim 6 | . 6 . . . . . . . . . . . . Fabricators . | . . . . . . . . . . . . . . Repair Stations . | . . . . . . . . . . . . . . Recycling Units . | . . . . . . . . . . . . . . Scanalyzers . | . . . . . . . . . . . . . . Garrison Access . | . . . . . . . . . . . . . . Data Cores Recovered 1 | . . . . 1 . . . . . . . . . Used . | . . . . . . . . . . . . . . Hacking Detections 17 | . 6 . . 6 1 1 1 1 . 1 . . . Full Trace Events 5 | . 1 . . 3 . . 1 . . . . . . Feedback Events 1 | . . . . 1 . . . . . . . . . Corruption 1 | . . . . 1 . . . . . . . . . Feedback Blocked . | . . . . . . . . . . . . . . Robot Schematics Acquired 8 | . . . . . . . . . . . . . 8 Robots Built . | . . . . . . . . . . . . . . Authchips . | . . . . . . . . . . . . . . Time . | . . . . . . . . . . . . . . Total Robot Build Rating . | . . . . . . . . . . . . . . Part Schematics Acquired 10 | . . . . . . . . . . . . . 10 Parts Built . | . . . . . . . . . . . . . . Authchips . | . . . . . . . . . . . . . . Time . | . . . . . . . . . . . . . . Total Part Build Rating . | . . . . . . . . . . . . . . Parts Repaired . | . . . . . . . . . . . . . . Time . | . . . . . . . . . . . . . . Parts Recycled . | . . . . . . . . . . . . . . Recycled Matter . | . . . . . . . . . . . . . . Retrieved Matter . | . . . . . . . . . . . . . . Retrieved Components . | . . . . . . . . . . . . . . Parts Scanalyzed . | . . . . . . . . . . . . . . Part Schematics Acquired . | . . . . . . . . . . . . . . Parts Damaged . | . . . . . . . . . . . . . . Bothacking | -11 -10 -10 -10 -8 -8 -8 -8 -7 -7 -7 -7 -7 -7 ------------ Run | Yrd Mat Min Sub Mat Gar Mat Gar Fac Was Fac Low Low Dat Used RIF Installer . | . . . . . . . . . . . . . . Robots Hacked . | . . . . . . . . . . . . . . Non-combat . | . . . . . . . . . . . . . . Combat . | . . . . . . . . . . . . . . Robot Hacks Applied . | . . . . . . . . . . . . . . Relay Couplers Released 15 | . . . . . 8 . 7 . . . . . . Machine Destruction 15 | . . . . . 8 . 7 . . . . . . Fabnet Peak Effective % . | . . . . . . . . . . . . . . Robots Rewired 5 | . . . . . 3 . 2 . . . . . . Allies Hacked . | . . . . . . . . . . . . . . Hacks Repelled . | . . . . . . . . . . . . . . Allies | -11 -10 -10 -10 -8 -8 -8 -8 -7 -7 -7 -7 -7 -7 -------- Run | Yrd Mat Min Sub Mat Gar Mat Gar Fac Was Fac Low Low Dat Total Allies 13 | . . 5 . 1 3 . 4 . . . . . . Largest Group 5 | . . 5 5 1 3 2 2 1 . . . . . Highest-Rated Group 120 | . . 89 89 10 120 80 56 23 . . . . . Highest-Rated Ally 40 | . . 31 31 10 40 40 31 23 . . . . . Initial Warlord ECA Mod 50 | . . . . . . 4 4 7 7 7 7 7 7 Total Orders 7 | . . 2 . 3 . . 2 . . . . . . STAY 4 | . . 1 . 2 . . 1 . . . . . . FOLLOW 3 | . . 1 . 1 . . 1 . . . . . . Ally Attacks 122 | . . 4 18 . 28 19 53 . . . . . . Total Damage 2505 | . . 73 256 . 761 445 970 . . . . . . Kills 37 | . . 3 3 . 9 11 11 . . . . . . Allies Corrupted . | . . . . . . . . . . . . . . Allies Melted . | . . . . . . . . . . . . . . Intel | -11 -10 -10 -10 -8 -8 -8 -8 -7 -7 -7 -7 -7 -7 ------- Run | Yrd Mat Min Sub Mat Gar Mat Gar Fac Was Fac Low Low Dat Active Infowar (turns) 11862 | 47 1744 1970 1765 247 . . 2433 1073 207 395 485 1134 362 Sensors 3655 | . . . . . . . . 1072 207 395 485 1134 362 Seismic 9487 | 47 1744 1970 1765 247 . . 2433 1073 207 1 . . . Jamming 1339 | . . . . . . . . . . 128 94 1002 115 Robot Analysis Total 152 | . 1 . . . . . . . . . . . 151 Derelict Logs Recovered 7 | . . 2 2 . . . . . . . 2 1 . Drone Launches . | . . . . . . . . . . . . . . Drone Recoveries . | . . . . . . . . . . . . . . Exploration | -11 -10 -10 -10 -8 -8 -8 -8 -7 -7 -7 -7 -7 -7 ------------- Run | Yrd Mat Min Sub Mat Gar Mat Gar Fac Was Fac Low Low Dat Turns Passed 18545 | 144 1744 1970 3212 3629 1497 180 2475 1073 207 395 485 1139 395 Spaces Moved 7161 | 74 779 658 887 1263 502 59 855 574 116 269 314 659 152 Core 6 | 5 . . . . . . . . . . . . 1 Treads 4994 | 69 779 658 887 1057 502 59 855 78 . . . . 50 Legs . | . . . . . . . . . . . . . . Wheels 2161 | . . . . 206 . . . 496 116 269 314 659 101 Hover . | . . . . . . . . . . . . . . Flight . | . . . . . . . . . . . . . . Fastest Speed 50 | 50 160 240 320 175 240 240 240 145 115 115 115 145 145 Average Speed 221 | 152 195 291 320 238 246 240 240 158 125 126 130 145 185 Slowest Speed 1450 | 160 240 320 320 320 250 240 240 240 160 130 160 160 1450 Overloaded Moves . | . . . . . . . . . . . . . . Propulsion Burnouts . | . . . . . . . . . . . . . . Robots Hopped . | . . . . . . . . . . . . . . Potential Cave-ins 7 | . . . . . . . . . 7 . . . . Cave-ins Triggered 1 | . . . . . . . . . 1 . . . . Exploration Rate (%) 57 | 6 98 98 59 83 54 10 76 16 87 8 57 78 79 Regions Visited 13 Branch Regions 5 Pre-discovered Areas 36 | . 1 . 1 . . . . . . . 3 . 31 Known Exits Taken 3 | . . 1 . 1 . 1 . . . . . . . Unknown Exits Taken 6 | 1 1 . 1 . . . . . . 1 1 1 . Scrap Searched 9 | . . 3 3 . . . . . . . 1 2 . Spaces Dug 27 | . . . . 9 6 . . 2 10 . . . . Terrain Destroyed 135 | . 27 . 5 48 19 . 14 4 10 2 1 4 1 Melee 12 | . . . . 2 . . . 1 9 . . . . Projectile 14 | . . . . 1 . . 1 3 1 2 1 4 1 AOE 109 | . 27 . 5 45 19 . 13 . . . . . . Terrain Rammed . | . . . . . . . . . . . . . . Walls Destroyed . | . . . . . . . . . . . . . . Machines Disabled . | . . . . . . . . . . . . . . Actions | -11 -10 -10 -10 -8 -8 -8 -8 -7 -7 -7 -7 -7 -7 --------- Run | Yrd Mat Min Sub Mat Gar Mat Gar Fac Was Fac Low Low Dat Total 8928 | 90 920 693 1153 1648 652 91 1123 684 165 313 354 804 238 Wait 836 | . 58 7 186 171 25 13 123 41 27 22 9 123 31 Move 7149 | 73 778 657 886 1262 501 58 854 574 115 268 313 658 152 Hop . | . . . . . . . . . . . . . . Pick Up 103 | 4 19 5 4 26 6 6 6 8 2 5 5 2 5 Fast Attach 20 | 7 1 . . 2 2 . 2 2 2 2 . . . Attach 48 | . 1 . 4 9 8 . 9 2 2 4 3 1 5 Detach 1 | . . . . . . . . . . 1 . . . Swap 121 | . 12 3 13 24 20 2 26 12 . 4 3 1 1 Drop 90 | . 6 9 3 24 6 6 4 15 3 3 3 1 7 Fire 426 | 6 40 7 53 120 51 6 69 26 5 4 18 16 5 Melee 64 | . . . 4 3 6 . 7 2 9 . . 2 31 Ram . | . . . . . . . . . . . . . . Kick . | . . . . . . . . . . . . . . Crush 19 | . 5 5 . 7 1 . . . . . . . 1 Escape Stasis 26 | . . . . . 8 . 18 . . . . . . Rewire 23 | . . . . . 18 . 5 . . . . . . Trap 2 | . . . . . . . . 2 . . . . . Miscellaneous . | . . . . . . . . . . . . . . Route ------- -11/Scrapyard -10/Materials (discovered 6 exits: *Mat x3 / *Min x2 / *Sub) -10/Mines (discovered 3 exits: *Mat x2 / *Sub) -10/Subcaves -8/Materials (discovered 3 exits: *Fac x2 / Gar) -8/Garrison (discovered 3 exits: *Mat x3) -8/Materials -8/Garrison (discovered 3 exits: *Fac x3) -7/Factory (discovered 4 exits: *Fac x2 / *Sto x2) -7/Waste -7/Factory -7/Lower Caves (discovered 2 exits: *Low / *Dat) -7/Lower Caves (discovered 2 exits: *Fac / *Dat) -7/Data Miner (discovered 1 exit: [*Pro]) History --------- Turn | Location | Event 64 | -11/Scrapyard | Discovered new exit (range 15) 145 | -11/Scrapyard | Entered Materials 146 | -10/Materials | Met a group of wandering Federalists 236 | -10/Materials | Discovered new exit (range 6) 317 | -10/Materials | Build established: Mutant 332 | -10/Materials | Discovered new exit (range 8) 463 | -10/Materials | Discovered new exit (range 7) 545 | -10/Materials | Discovered new exit (range 10) 778 | -10/Materials | Discovered new exit (range 16) 1212 | -10/Materials | Discovered new exit (range 6) 1798 | -10/Materials | Learned location of 2 exits from Mines 1843 | -10/Materials | Learned 2 Mines zone layouts 1880 | -10/Materials | Learned location of Mines (-8) 1889 | -10/Materials | Entered Mines 1890 | -10/Mines | Identified exit to Materials 1891 | -10/Mines | Identified exit to Subcaves 2354 | -10/Mines | Assisted by bots powering up and referring to "LRC-V3" 2421 | -10/Mines | Learned Materials security intel 3058 | -10/Mines | Met a Derelict who couldn't figure out how to use a Trap Extractor 3347 | -10/Mines | A weapon hastily lodged in a ceiling crevice suddenly fell to the ground 3859 | -10/Mines | Entered Subcaves 3859 | -10/Subcaves | Accompanied by 5 allies 3864 | -10/Subcaves | Led the pair of lost Derelicts to an unsafe place 3905 | -10/Subcaves | Shifting Twisted Machinery released Mak. Spear 3939 | -10/Subcaves | Learned location of Zion (-6) 4760 | -10/Subcaves | Visited 4L-MR0's lab 4787 | -10/Subcaves | Found Tower Shield 5053 | -10/Subcaves | Lost 3 allies 5795 | -10/Subcaves | Core integrity fell below 50% 6553 | -10/Subcaves | Core integrity fell below 20% 6698 | -10/Subcaves | Shifting Twisted Machinery released Sub. Laser 6717 | -10/Subcaves | Shifting Twisted Machinery released Sub. Optics 7020 | -10/Subcaves | Discovered new exit (range 9) 7071 | -10/Subcaves | Entered Materials 7071 | -8/Materials | Evolved 4 slots: Propulsion x1, Utility x2, Weapon x1 7175 | -8/Materials | Lost 3 parts (1p1u1w) 7387 | -8/Materials | Build established: Tank 7563 | -8/Materials | Garrison activated, responded to threat 7899 | -8/Materials | Build established: Scavenger-Gunner 8235 | -8/Materials | Discovered new exit (range 15) 8632 | -8/Materials | Build established: Gunner 9002 | -8/Materials | Discovered new exit (range 15) 10700 | -8/Materials | Identified exit to Garrison 10700 | -8/Materials | Entered Garrison 10851 | -8/Garrison | Lost 3 parts (1u2w) 10932 | -8/Garrison | Triggered checkpoint 10996 | -8/Garrison | Garrison Relay disabled 11194 | -8/Garrison | Triggered checkpoint 11278 | -8/Garrison | Triggered checkpoint 11384 | -8/Garrison | Discovered new exit (range 10) 11452 | -8/Garrison | Triggered checkpoint 11488 | -8/Garrison | Triggered checkpoint 11506 | -8/Garrison | Build established: Tank 11577 | -8/Garrison | Lost 4 parts (1p2n1w) 11639 | -8/Garrison | Garrison Relay disabled 11916 | -8/Garrison | Triggered checkpoint 12074 | -8/Garrison | Triggered checkpoint 12131 | -8/Garrison | Discovered new exit (range 14) 12173 | -8/Garrison | Discovered new exit (range 5) 12197 | -8/Garrison | Entered Materials 12197 | -8/Materials | Accompanied by 2 allies 12330 | -8/Materials | Identified exit to Garrison 12345 | -8/Materials | Core integrity fell below 50% 12376 | -8/Materials | Build established: Scavenger-Tank 12377 | -8/Materials | Entered Garrison 12485 | -8/Garrison | Triggered checkpoint 12541 | -8/Garrison | Triggered checkpoint 12646 | -8/Garrison | Garrison Relay disabled 12805 | -8/Garrison | Triggered checkpoint 12865 | -8/Garrison | Triggered checkpoint 12891 | -8/Garrison | Triggered checkpoint 12927 | -8/Garrison | Destroyed 13 combat bots 13046 | -8/Garrison | Discovered new exit (range 9) 13133 | -8/Garrison | Triggered checkpoint 13182 | -8/Garrison | Lost 3 parts (2n1w) 13648 | -8/Garrison | Discovered new exit (range 14) 13893 | -8/Garrison | Triggered checkpoint 13961 | -8/Garrison | Triggered checkpoint 14011 | -8/Garrison | Triggered checkpoint 14136 | -8/Garrison | Discovered new exit (range 15) 14253 | -8/Garrison | Rescued a captive Derelict 14255 | -8/Garrison | Rescued a captive Derelict 14256 | -8/Garrison | Core integrity fell below 20% 14453 | -8/Garrison | Garrison Relay disabled 14507 | -8/Garrison | Triggered checkpoint 14527 | -8/Garrison | Triggered checkpoint 14567 | -8/Garrison | Triggered checkpoint 14852 | -8/Garrison | Entered Factory 14852 | -7/Factory | Accompanied by 1 ally 14852 | -7/Factory | Evolved 2 slots: Propulsion x1, Utility x1 14853 | -7/Factory | Identified exit to Storage 15252 | -7/Factory | First assault squad dispatched 15278 | -7/Factory | Discovered new exit (range 3) 15383 | -7/Factory | Identified exit to Factory 15454 | -7/Factory | Discovered exit to Factory (range 15) 15800 | -7/Factory | Cargo convoy interrupted 15925 | -7/Factory | Sucked down chute 15925 | -7/Factory | Entered Waste 15937 | -7/Waste | Spotted C-40 Crusher 15951 | -7/Waste | Spotted C-40 Crusher 16012 | -7/Waste | Spotted C-40 Crusher 16018 | -7/Waste | Spotted C-40 Crusher 16033 | -7/Waste | Crushed by Compactor (1 part destroyed, 1 dropped) 16058 | -7/Waste | Crushed by Compactor (1 part destroyed, 1 dropped) 16071 | -7/Waste | Crushed by falling debris 16085 | -7/Waste | Spotted C-40 Crusher 16088 | -7/Waste | Spotted C-40 Crusher 16102 | -7/Waste | Lost 3 parts (1u2w) 16106 | -7/Waste | Discovered new exit (range 15) 16132 | -7/Waste | Entered Factory 16430 | -7/Factory | Discovered new exit (range 6) 16527 | -7/Factory | Entered Lower Caves 16528 | -7/Lower Caves | A Derelict revealed a hidden shortcut to meet someone special 16533 | -7/Lower Caves | Build established: Tank 16534 | -7/Lower Caves | Met a Warlord Commander 16535 | -7/Lower Caves | Learned location of Warlord (-4) 16536 | -7/Lower Caves | Warlord Commander delivered Encrypted Comm Array 16538 | -7/Lower Caves | Found Encrypted Comm Array 16638 | -7/Lower Caves | Attracted the attention of an 0b10 checkpoint 16952 | -7/Lower Caves | Discovered new exit (range 14) 17012 | -7/Lower Caves | Entered another Lower Caves area 17119 | -7/Lower Caves | Discovered exit to Factory (range 15) 17435 | -7/Lower Caves | Build established: Scavenger-Tank 17518 | -7/Lower Caves | Learned Factory interactive machine intel 17975 | -7/Lower Caves | Discovered new exit (range 5) 18151 | -7/Lower Caves | Entered Data Miner 18151 | -7/Data Miner | Discovered new exit (range 6) 18180 | -7/Data Miner | Met Data Miner 18188 | -7/Data Miner | Build established: Mutant 18222 | -7/Data Miner | Learned location of Section 7 (-2) 18222 | -7/Data Miner | Acquired the access code to Warlord's prototype stash 18232 | -7/Data Miner | Received God Mode back door access code from Data Miner 18358 | -7/Data Miner | Destroyed Data Miner 18358 | -7/Data Miner | Interfaced with the Data Conduit 18361 | -7/Data Miner | Found Prototype Hackware 18522 | -7/Data Miner | Core integrity fell below 50% 18543 | -7/Data Miner | Core integrity fell below 20% 18546 | -7/Data Miner | Destroyed by Enhanced Grunt with Neutron Cannon Last Messages --------------- crushing effect. 18481_ Lgt. Nuclear Core destroyed. 18489_ Enhanced Grunt suffers critical hit (Smash). 18489_ Destroyed Exp. Thermal Shield. 18489_ Enhanced Grunt system corrupted by crushing effect. 18493_ Lgt. Treads destroyed. 18501_ Destroyed Adv. Heat Sink. 18501_ Enhanced Grunt system corrupted by crushing effect. 18514_ Lgt. Treads destroyed. 18517_ System corrupted: Heat flow error (+170). 18519_ Hrd. Heavy Armor Plating destroyed. 18519_ Lgt. Treads destroyed. 18524_ Mak. Hammer destroyed. 18532_ Lgt. Treads destroyed. 18533_ System corrupted: Matter fused (-7). 18538_ Arm. Huge Wheel destroyed. 18542_ Imp. Cooling System destroyed. Map ----- +----------------------------------------------------+ | | | | | | | | | | | | | | | | | | | | | | | | | | | | | | | | | | | ?????????????????????????????????????????????????? | | ?????????????????????????????????????????????????? | | ?????????????????????????????????????????????????? | | ?????????????????????????????????????????????????? | | ????????###??????????????????????????####????????? | | ????#####"###########??????#???????### #????????? | | ???## " """""""""###### #??????## #????????? | | ??##" "% "" " """" # # # # ##! < ##????????? | | ??#" """ " @ ! ######???? | | ??# """"" g #???? | | ??#" """"" g #???? | | ??# """"" & #???? | | ??#" """ " ##???? | | ??# """ "" """"""""""""""""#####????? | | ??#" " """" """"###############????????? | | ??##" """"" g"""""###??????????????????????? | | ???##"""""""" "#####????????????????????????? | | ????########"## "#????????????????????????????? | | ???????????#"### "#????????????????????????????? | | ???????????#"### "#????????????????????????????? | | ???????????#"?# "#????????????????????????????? | | ?????????????## "#????????????????????????????? | | ?????????????# "#????????????????????????????? | | ?????????????### "#????????????????????????????? | | ???????????????# "##???????????????????????????? | | ??????????????## ""#???????????????????????????? | | ???????????#?## ""#???????????????????????????? | | ??????????##"#"X ""#???????????????????????????? | | ??????????""""" "####????????????????????????? | | ??????????""""" X"""""????????????????????????? | | ??????????##"#"X "##"#????????????????????????? | | ???????????#"## X""""#????????????????????????? | | ??????????????## "##"#????????????????????????? | +----------------------------------------------------+ Best States ------------- Heat Dissipation 61 Coolant Potential 50 Energy Generation 18 Energy Capacity 290 Matter Stores 300 Matter Capacity 300 Sight Range 16 Robot Scan Range 15 Terrain Scan Density 10 Jamming Range 12 Armor Coverage 600 Evasion (%) 40 Core Analysis 6 Recoil Reduction 4 Kinecelleration 30 Item Schematics ----------------- Combat Drone Bay | -7/Data Miner | Free Lgt. Regenerative Plating | -7/Data Miner | Free Biomechanical Wings | -7/Data Miner | Free Exp. Targeting Computer | -7/Data Miner | Free Antimatter Cannon | -7/Data Miner | Free Antigrav System | -7/Data Miner | Free Point Defense System | -7/Data Miner | Free Imp. Plasma Cutter | -7/Data Miner | Free Thermal Shield | -7/Data Miner | Free Imp. Transmission Jammer | -7/Data Miner | Free Robot Schematics ------------------ P-60 Hacker | -7/Data Miner | Free S-27 Virus | -7/Data Miner | Free X-67 Chaingunner | -7/Data Miner | Free E-15 Imp | -7/Data Miner | Free H-66 Slayer | -7/Data Miner | Free G-50 Soldier | -7/Data Miner | Free X-72 Disruptor | -7/Data Miner | Free B-48 Gladiator | -7/Data Miner | Free Fabricated ------------ Nothing Repaired ---------- Nothing Alien Tech Used ----------------- None Achievements -------------- None Challenges ------------ None Game ------ Seed XenonEnergyCasing Manual? 0 Play Time 01:24:35 Cumulative 172.1 hours Start 2025.08.11 @ 16:41:40 End 2025.08.12 @ 17:50:00 Sessions 6 Manual Loads 0 Difficulty Rogue Special Mode None Game No. 84 Rogue 84 Adventurer 0 Explorer 0 Win Type - Total 19 Types 9/1/5/1/0/1/1/1/0/0 Lore% 65 Gallery% 61 Achievement% 70 Wizard Run 0 Options --------- Layout 1 ASCII 0 Keyboard 0 Movement Arrows Keybinds 0 Fullscreen 2 Font 24/Tamsyn Map View 50x35 Zoom Use 0% Tactical HUD 1 Map Filters NONE Filters NONE Steam 1 RUN: 050e6ecd-33b1-436d-a723-d0b5c7cbb6e6